fUST/lending_fUST_20250624
["ID","MTS","AMOUNT","RATE_DAILY","PERIOD"]
[367196636,1750698645849,-460.0,0.00019881,2]
[367196638,1750698645859,-544.57,0.00019881,2]
[367196640,1750698645868,-152.17968508,0.00019881,2]
[367196642,1750698645878,-460.0,0.00019881,2]
[367196644,1750698645887,-498.51,0.00019881,2]
[367196646,1750698645897,-460.0,0.00019881,2]
[367196648,1750698645906,-460.0,0.00019881,2]
[367196650,1750698645916,-460.0,0.00019881,2]
[367196652,1750698645926,-460.0,0.00019881,2]
[367196654,1750698645935,-460.0,0.00019881,2]
[367196657,1750698645944,-460.0,0.00019881,2]
[367196659,1750698645954,-460.0,0.00019881,2]
[367196661,1750698645963,-781.06,0.00019881,2]
[367196663,1750698645972,-457.63209664,0.00019881,2]
[367196665,1750698645982,-807.22,0.00019881,2]
[367196667,1750698645991,-540.18,0.00019881,2]
[367196669,1750698646001,-290.77287566,0.00019881,2]
[367196671,1750698646011,-460.0,0.00019881,2]
[367196673,1750698646021,-460.0,0.00019881,2]
[367196675,1750698646035,-460.0,0.00019881,2]
[367196677,1750698646045,-460.0,0.00019881,2]
[367196679,1750698646054,-460.0,0.00019881,2]
[367196681,1750698646064,-460.0,0.00019881,2]
[367196684,1750698646076,-460.0,0.00019881,2]
[367196686,1750698646086,-369.39682644,0.00019881,2]
[367196688,1750698646095,-460.0,0.00019881,2]
[367196690,1750698646105,-460.0,0.00019881,2]
[367196692,1750698646115,-460.0,0.00019881,2]
[367196694,1750698646125,-460.0,0.00019881,2]
[367196696,1750698646135,-460.0,0.00019881,2]
[367196698,1750698646145,-500.62,0.00019881,2]
[367196700,1750698646154,-595.39,0.00019881,2]
[367196702,1750698646163,-494.56828553,0.00019881,2]
[367196704,1750698646173,-1079.17,0.00019881,2]
[367196706,1750698646182,-460.0,0.00019881,2]
[367196708,1750698646192,-576.79709934,0.00019881,2]
[367196710,1750698646201,-460.0,0.00019881,2]
[367196712,1750698646210,-460.0,0.00019881,2]
[367196714,1750698646220,-460.0,0.00019881,2]
[367196716,1750698646230,-460.0,0.00019881,2]
[367196718,1750698646240,-747.22,0.00019881,2]
[367196720,1750698646249,-460.0,0.00019881,2]
[367196722,1750698646259,-520.16,0.00019881,2]
[367196724,1750698646268,-460.0,0.00019881,2]
[367196726,1750698646277,-460.0,0.00019881,2]
[367196728,1750698646287,-460.0,0.00019881,2]
[367196730,1750698646296,-460.0,0.00019881,2]
[367196732,1750698646305,-447.93808179,0.00019881,2]
[367196734,1750698646314,-460.0,0.00019881,2]
[367196736,1750698646326,-460.0,0.00019881,2]
[367196738,1750698646335,-460.0,0.00019881,2]
[367196740,1750698646345,-460.0,0.00019881,2]
[367196742,1750698646355,-460.0,0.00019881,2]
[367196744,1750698646365,-596.07,0.00019881,2]
[367196746,1750698646374,-460.0,0.00019881,2]
[367196748,1750698646383,-460.0,0.00019881,2]
[367196750,1750698646393,-460.0,0.00019881,2]
[367196752,1750698646402,-475.59,0.00019881,2]
[367196754,1750698646412,-756.39,0.00019881,2]
[367196756,1750698646421,-458.2265227,0.00019881,2]
[367196758,1750698646432,-460.0,0.00019881,2]
[367196760,1750698646441,-460.0,0.00019881,2]
[367196762,1750698646450,-460.0,0.00019881,2]
[367196764,1750698646459,-460.0,0.00019881,2]
[367196766,1750698646468,-460.0,0.00019881,2]
[367196768,1750698646477,-460.0,0.00019881,2]
[367196770,1750698646487,-463.60919068,0.00019881,2]
[367196772,1750698646496,-460.0,0.00019881,2]
[367196774,1750698646506,-522.83,0.00019881,2]
[367196776,1750698646515,-460.0,0.00019881,2]
[367196778,1750698646524,-460.0,0.00019881,2]
[367196780,1750698646533,-460.0,0.00019881,2]
[367196782,1750698646543,-1022.27,0.00019881,2]
[367196784,1750698646553,-739.53,0.00019881,2]
[367196786,1750698646562,-374.81112425,0.00019881,2]
[367196788,1750698646575,-460.0,0.00019881,2]
[367196790,1750698646584,-481.0,0.00019881,2]
[367196792,1750698646593,-460.0,0.00019881,2]
[367196794,1750698646603,-460.0,0.00019881,2]
[367196796,1750698646612,-822.71,0.00019881,2]
[367196798,1750698646621,-460.0,0.00019881,2]
[367196800,1750698646631,-460.0,0.00019881,2]
[367196802,1750698646641,-460.0,0.00019881,2]
[367196804,1750698646650,-460.0,0.00019881,2]
[367196806,1750698646660,-460.0,0.00019881,2]
[367196808,1750698646669,-460.0,0.00019881,2]
[367196810,1750698646678,-460.0,0.00019881,2]
[367196812,1750698646688,-518.25533123,0.00019881,2]
[367196814,1750698646701,-556.36,0.00019881,2]
[367196816,1750698646710,-872.76,0.00019881,2]
[367196818,1750698646720,-460.0,0.00019881,2]
[367196821,1750698646729,-336.57959495,0.00019881,2]
[367196822,1750698646738,-460.0,0.00019881,2]
[367196825,1750698646747,-460.0,0.00019881,2]
[367196826,1750698646757,-500.0,0.00019881,2]
[367196829,1750698646766,-460.0,0.00019881,2]
[367196831,1750698646775,-519.49,0.00019881,2]
[367196833,1750698646784,-460.0,0.00019882,2]
[367196835,1750698646794,-460.0,0.00019882,2]
[367196836,1750698646804,-460.0,0.00019882,2]
[367196838,1750698646814,-460.0,0.00019882,2]
[367196840,1750698646830,-460.0,0.00019882,2]
[367196842,1750698646840,-460.0,0.00019882,2]
[367196845,1750698646850,-460.0,0.00019882,2]
[367196846,1750698646860,-924.96,0.00019882,2]
[367196848,1750698646869,-460.0,0.00019882,2]
[367196850,1750698646878,-571.76,0.00019882,2]
[367196852,1750698646887,-458.57754723,0.00019882,2]
[367196854,1750698646897,-510.97,0.00019882,2]
[367196857,1750698646907,-785.38,0.00019882,2]
[367196859,1750698646916,-610.37,0.00019882,2]
[367196861,1750698646926,-1926.61,0.00019882,2]
[367196863,1750698646935,-460.0,0.00019882,2]
[367196865,1750698646944,-460.0,0.00019882,2]
[367196867,1750698646953,-860.11,0.00019882,2]
[367196869,1750698646962,-460.0,0.00019882,2]
[367196871,1750698646971,-460.0,0.00019882,2]
[367196873,1750698646981,-460.0,0.00019882,2]
[367196875,1750698646990,-270.7414895,0.00019882,2]
[367196877,1750698646999,-1026.88,0.00019882,2]
[367196879,1750698647009,-460.0,0.00019882,2]
[367196881,1750698647018,-460.0,0.00019882,2]
[367196883,1750698647032,-1307.75,0.00019882,2]
[367196885,1750698647042,-10547.55,0.00019882,2]
[367196887,1750698647051,-1617.28,0.00019882,2]
[367196889,1750698647061,-1374.4,0.00019882,2]
[367196891,1750698647073,-862.48,0.00019882,2]
[367196893,1750698647082,-460.0,0.00019882,2]
[367196895,1750698647091,-1887.54,0.00019882,2]
[367196897,1750698647101,-493.4,0.00019884,2]
[367196899,1750698647110,-1461.47,0.00019884,2]
[367196901,1750698647119,-773.04,0.00019884,2]
[367196903,1750698647128,-1458.97,0.00019884,2]
[367196905,1750698647137,-460.0,0.00019884,2]
[367196907,1750698647147,-826.63,0.00019884,2]
[367196908,1750698647156,-460.0,0.00019884,2]
[367196910,1750698647165,-718.56,0.00019884,2]
[367196912,1750698647173,-463.0439847,0.00019884,2]
[367196914,1750698647182,-951.02,0.00019884,2]
[367196916,1750698647192,-460.0,0.00019884,2]
[367196919,1750698647201,-460.0,0.00019884,2]
[367196921,1750698647210,-522.57,0.00019884,2]
[367196923,1750698647220,-1126.31,0.00019884,2]
[367196925,1750698647230,-460.0,0.00019884,2]
[367196927,1750698647239,-460.0,0.00019884,2]
[367196929,1750698647248,-460.0,0.00019884,2]
[367196931,1750698647257,-460.0,0.00019884,2]
[367196933,1750698647266,-460.0,0.00019884,2]
[367196935,1750698647277,-460.0,0.00019884,2]
[367196937,1750698647286,-835.07,0.00019884,2]
[367196938,1750698647295,-897.11,0.00019884,2]
[367196940,1750698647305,-708.98,0.00019884,2]
[367196942,1750698647315,-460.0,0.00019884,2]
[367196945,1750698647329,-543.75,0.00019884,2]
[367196946,1750698647338,-3553.58,0.00019884,2]
[367196948,1750698647349,-1296.45,0.00019884,2]
[367196950,1750698647358,-719.97,0.00019884,2]
[367196952,1750698647367,-667.74,0.00019884,2]
[367196954,1750698647376,-460.0,0.00019884,2]
[367196956,1750698647385,-756.07,0.00019884,2]
[367196958,1750698647394,-1022.91,0.00019884,2]
[367196961,1750698647403,-789.21,0.00019884,2]
[367196963,1750698647413,-460.0,0.00019884,2]
[367196965,1750698647422,-1090.82,0.00019884,2]
[367196967,1750698647432,-1044.46,0.00019884,2]
[367196969,1750698647441,-500.0,0.00019884,2]
[367196971,1750698647451,-462.41,0.00019885,2]
[367196973,1750698647460,-460.0,0.00019885,2]
[367196975,1750698647469,-460.0,0.00019885,2]
[367196977,1750698647478,-500.0,0.00019885,2]
[367196979,1750698647487,-500.0,0.00019885,2]
[367196981,1750698647497,-500.0,0.00019885,2]
[367196983,1750698647507,-460.0,0.00019885,2]
[367196985,1750698647516,-165.82536997,0.00019885,2]
[367196986,1750698647526,-460.0,0.00019885,2]
[367196989,1750698647536,-460.0,0.00019885,2]
[367196991,1750698647546,-460.0,0.00019885,2]
[367196993,1750698647555,-460.0,0.00019885,2]
[367196995,1750698647565,-460.0,0.00019885,2]
[367196997,1750698647576,-460.0,0.00019885,2]
[367196999,1750698647586,-460.0,0.00019885,2]
[367197001,1750698647595,-460.0,0.00019885,2]
[367197003,1750698647605,-460.0,0.00019885,2]
[367197005,1750698647614,-460.0,0.00019885,2]
[367197007,1750698647623,-626.29,0.00019885,2]
[367197009,1750698647632,-460.0,0.00019885,2]
[367197011,1750698647642,-2028.26,0.00019885,2]
[367197013,1750698647652,-460.0,0.00019885,2]
[367197015,1750698647661,-613.71,0.00019885,2]
[367197017,1750698647671,-840.55,0.00019885,2]
[367197019,1750698647680,-460.0,0.00019885,2]
[367197021,1750698647690,-460.0,0.00019885,2]
[367197023,1750698647700,-460.0,0.00019885,2]
[367197025,1750698647709,-460.0,0.00019885,2]
[367197027,1750698647719,-460.0,0.00019885,2]
[367197029,1750698647728,-460.0,0.00019885,2]
[367197031,1750698647737,-460.0,0.00019885,2]
[367197033,1750698647747,-462.27803661,0.00019885,2]
[367197035,1750698647756,-633.34,0.00019885,2]
[367197037,1750698647765,-1648.18,0.00019885,2]
[367197038,1750698647775,-2688.95,0.00019885,2]
[367197040,1750698647784,-1524.85,0.00019885,2]
[367197042,1750698647794,-460.0,0.00019885,2]
[367197044,1750698647803,-1153.46,0.00019885,2]
[367197046,1750698647813,-462.66,0.00019885,2]
[367197048,1750698647824,-677.38,0.00019885,2]
[367197050,1750698647833,-460.0,0.00019885,2]
[367197052,1750698647844,-4160.65,0.00019885,2]
[367197054,1750698647853,-3146.18,0.00019885,2]
[367197056,1750698647862,-565.91,0.00019885,2]
[367197058,1750698647873,-460.0,0.00019885,2]
[367197060,1750698647882,-2501.91,0.00019885,2]
[367197062,1750698647891,-679.08,0.00019885,2]
[367197064,1750698647900,-4389.25,0.00019885,2]
[367197066,1750698647910,-590.93,0.00019885,2]
[367197068,1750698647919,-460.0,0.00019885,2]
[367197070,1750698647928,-460.0,0.00019886,2]
[367197072,1750698647938,-460.0,0.00019886,2]
[367197074,1750698647947,-460.0,0.00019886,2]
[367197076,1750698647956,-460.0,0.00019886,2]
[367197078,1750698647965,-460.0,0.00019886,2]
[367197080,1750698647975,-460.0,0.00019886,2]
[367197082,1750698647984,-460.0,0.00019886,2]
[367197084,1750698647993,-460.0,0.00019886,2]
[367197086,1750698648002,-460.0,0.00019886,2]
[367197089,1750698648012,-460.0,0.00019886,2]
[367197091,1750698648021,-472.02,0.00019886,2]
[367197092,1750698648031,-460.0,0.00019886,2]
[367197095,1750698648044,-460.0,0.00019886,2]
[367197097,1750698648054,-460.0,0.00019886,2]
[367197098,1750698648063,-460.0,0.00019886,2]
[367197100,1750698648076,-460.0,0.00019886,2]
[367197102,1750698648086,-460.0,0.00019886,2]
[367197104,1750698648095,-460.0,0.00019886,2]
[367197106,1750698648104,-460.0,0.00019886,2]
[367197108,1750698648113,-678.32,0.00019886,2]
[367197110,1750698648123,-460.0,0.00019886,2]
[367197112,1750698648132,-462.05117041,0.00019886,2]
[367197114,1750698648141,-1129.24,0.00019886,2]
[367197116,1750698648151,-460.0,0.00019886,2]
[367197118,1750698648161,-896.32,0.00019886,2]
[367197121,1750698648170,-449.45173939,0.00019886,2]
[367197123,1750698648181,-460.0,0.00019886,2]
[367197125,1750698648191,-460.0,0.00019886,2]
[367197127,1750698648200,-460.0,0.00019886,2]
[367197129,1750698648210,-460.0,0.00019886,2]
[367197131,1750698648220,-460.0,0.00019886,2]
[367197133,1750698648229,-460.0,0.00019886,2]
[367197135,1750698648239,-460.0,0.00019886,2]
[367197137,1750698648248,-460.0,0.00019886,2]
[367197139,1750698648257,-460.0,0.00019886,2]
[367197141,1750698648267,-460.0,0.00019886,2]
[367197143,1750698648277,-619.5,0.00019886,2]
[367197145,1750698648286,-460.0,0.00019886,2]
[367197147,1750698648295,-460.0,0.00019886,2]
[367197149,1750698648305,-460.0,0.00019886,2]
[367197150,1750698648315,-669.78,0.00019886,2]
[367197152,1750698648326,-460.0,0.00019886,2]
[367197154,1750698648336,-460.0,0.00019886,2]
[367197156,1750698648346,-886.1,0.00019886,2]
[367197158,1750698648355,-500.0,0.00019886,2]
[367197160,1750698648365,-156.58278908,0.00019886,2]
[367197162,1750698648374,-460.0,0.00019886,2]
[367197165,1750698648386,-460.0,0.00019886,2]
[367197166,1750698648395,-137.64090492,0.00019886,2]
[367197171,1750698648426,-921.10909508,0.00019886,2]
[367197173,1750698648436,-460.0,0.00019886,2]
[367197175,1750698648445,-460.0,0.00019886,2]
[367197177,1750698648454,-460.0,0.00019886,2]
[367197179,1750698648465,-460.0,0.00019886,2]
[367197181,1750698648474,-460.0,0.00019886,2]
[367197183,1750698648484,-742.71,0.00019886,2]
[367197185,1750698648493,-518.15,0.00019886,2]
[367197187,1750698648502,-460.0,0.00019886,2]
[367197189,1750698648512,-460.0,0.00019886,2]
[367197191,1750698648522,-460.0,0.00019886,2]
[367197193,1750698648531,-460.0,0.00019886,2]
[367197195,1750698648541,-575.72,0.00019886,2]
[367197197,1750698648550,-460.0,0.00019886,2]
[367197199,1750698648559,-460.0,0.00019886,2]
[367197201,1750698648569,-460.0,0.00019886,2]
[367197203,1750698648579,-460.0,0.00019886,2]
[367197205,1750698648589,-12052.31090493,0.0001999,2]
[367197207,1750698648601,-1775.53786358,0.0001999,2]
[367197221,1750698648742,-953.03957672,0.0001999,2]
[367197224,1750698648754,-16688.70055212,0.0001999,2]
[367197668,1750698653651,-1042.04204741,0.0001999,2]
[367203291,1750698759040,244.19649766,0.000189,2]
[367203292,1750698832132,162.79766511,0.000189,2]
[367203539,1750698977733,617.7922589,0.00018599,2]
[367203540,1750699060264,150.0,0.000189,2]
[367203541,1750699067176,500.0,0.00026493,60]
[367203542,1750699113215,500.0,0.00026493,60]
[367203543,1750699133433,150.0,0.000189,2]
[367203831,1750699155476,500.0,0.00026493,60]
[367203832,1750699172982,-161.60716342,0.00019178,2]
[367203833,1750699185999,-180.0,0.00019178,2]
[367203834,1750699201841,22239.77973375,0.00018596,2]
[367203835,1750699201872,2660.22026625,0.00018596,2]
[367204008,1750699267362,500.0,0.00026502,120]
[367204009,1750699389472,161.504971,0.00013699,2]
[367204011,1750699506433,901.15681376,0.0001911,2]
[367204012,1750699563950,-156.60765153,0.00019178,2]
[367204013,1750699570909,-2066.0,0.00019178,2]
[367204014,1750699618233,1530.12,0.0001911,2]
[367204015,1750699620394,-163.06876337,0.00019178,2]
[367204016,1750699620417,-4.25032857,0.00019178,2]
[367204017,1750699623968,167.31909194,0.0001911,2]
[367204018,1750699639120,-12.65198901,0.00019178,2]
[367204019,1750699639143,-163.19001099,0.00019407,2]
[367204020,1750699648119,-38.9725476,0.00019407,2]
[367204021,1750699648142,-188.37731354,0.00019473,2]
[367204022,1750699648165,-188.37731353,0.00019484,2]
[367204023,1750699648187,-188.37731353,0.00019494,2]
[367204024,1750699648209,-153.32499634,0.00019495,2]
[367204025,1750699648230,-721.69378943,0.00019507,2]
[367204026,1750699648251,-500.0,0.00019573,2]
[367204027,1750699648273,-500.0,0.00019573,2]
[367204028,1750699648294,-505.41539407,0.00019573,2]
[367204029,1750699648314,-500.0,0.00019573,2]
[367204030,1750699648335,-500.0,0.00019573,2]
[367204031,1750699648360,-500.0,0.00019573,2]
[367204032,1750699648381,-500.0,0.00019573,2]
[367204033,1750699648401,-500.0,0.00019573,2]
[367204034,1750699648422,-500.0,0.00019573,2]
[367204035,1750699648442,-606.04,0.0001959,3]
[367204036,1750699648463,-300.0,0.00019592,2]
[367204037,1750699648484,-300.0,0.00019593,2]
[367204038,1750699648511,-36.97327501,0.00019593,2]
[367204040,1750699716357,394.15063865,0.0002,120]
[367204044,1750699723703,301.99999993,0.0002,120]
[367204045,1750699747110,-330.37767278,0.000195,2]
[367204046,1750699747131,-577.35503156,0.00019506,2]
[367204047,1750699747152,-151.0,0.00019547,2]
[367204048,1750699747171,-446.35625141,0.00019573,2]
[367204049,1750699747193,-500.0,0.00019573,2]
[367204050,1750699747214,-300.0,0.00019592,2]
[367204051,1750699747235,-1163.02672499,0.00019593,2]
[367204052,1750699747255,-300.0,0.00019593,2]
[367204053,1750699747274,-460.0,0.00019593,2]
[367204054,1750699747294,-273.5333032,0.00019593,2]
[367204055,1750699747314,-460.0,0.00019593,2]
[367204056,1750699747339,-460.0,0.00019593,2]
[367204057,1750699747359,-493.67,0.00019593,2]
[367204058,1750699747381,-557.64,0.00019593,2]
[367204059,1750699747404,-460.0,0.00019593,2]
[367204060,1750699747428,-422.55606974,0.00019593,2]
[367204061,1750699774124,-487.79486585,0.00019396,2]
[367204091,1750699832696,-312.20513415,0.00019396,2]
[367204092,1750699832706,-500.0,0.00019573,2]
[367204093,1750699832716,-500.0,0.00019573,2]
[367204094,1750699832725,-588.75,0.00019586,3]
[367204095,1750699832734,-707.0,0.00019586,3]
[367204096,1750699832748,-353.5,0.00019586,3]
[367204097,1750699832758,-176.75,0.00019586,3]
[367204098,1750699832768,-530.28,0.00019586,3]
[367204099,1750699832778,-1200.0,0.0001959,2]
[367204100,1750699832788,-300.0,0.00019591,2]
[367204101,1750699832797,-300.0,0.00019591,2]
[367204102,1750699832807,-300.0,0.00019591,2]
[367204103,1750699832817,-460.0,0.00019592,2]
[367204104,1750699832827,-460.0,0.00019592,2]
[367204105,1750699832837,-460.0,0.00019592,2]
[367204106,1750699832848,-622.83,0.00019592,2]
[367204107,1750699832857,-460.0,0.00019592,2]
[367204108,1750699832867,-152.01700912,0.00019592,2]
[367204109,1750699832876,-562.27,0.00019593,2]
[367204110,1750699832885,-460.0,0.00019593,2]
[367204111,1750699832895,-460.0,0.00019593,2]
[367204112,1750699832905,-531.93881992,0.00019593,2]
[367204121,1750699838403,-346.97104393,0.00019592,2]
[367204122,1750699838413,-460.0,0.00019592,2]
[367204123,1750699838427,-460.0,0.00019592,2]
[367204124,1750699838441,-328.40118008,0.00019593,2]
[367204125,1750699838454,-460.0,0.00019593,2]
[367204126,1750699838464,-555.61,0.00019593,2]
[367204127,1750699838474,-460.0,0.00019593,2]
[367204128,1750699838484,-754.49,0.00019593,2]
[367204129,1750699838498,-5144.83,0.00019593,2]
[367204130,1750699838507,-460.0,0.00019593,2]
[367204131,1750699838517,-460.0,0.00019593,2]
[367204132,1750699838526,-460.0,0.00019593,2]
[367204133,1750699838536,-77.44393026,0.00019593,2]
[367204134,1750699838545,-263.19053845,0.00019593,2]
[367204135,1750699838555,-500.0,0.00019593,2]
[367204136,1750699838566,-500.0,0.00019593,2]
[367204137,1750699838575,-500.0,0.00019593,2]
[367204138,1750699838585,-532.00658105,0.00019593,2]
[367204139,1750699838597,-500.0,0.00019593,2]
[367204140,1750699838607,-362.19665965,0.00019593,2]
[367204141,1750699838616,-500.0,0.00019593,2]
[367204142,1750699838625,-500.0,0.00019593,2]
[367204143,1750699838635,-500.0,0.00019593,2]
[367204144,1750699838645,-500.0,0.00019593,2]
[367204145,1750699838655,-500.0,0.00019593,2]
[367204146,1750699838665,-500.0,0.00019593,2]
[367204147,1750699838675,-337.09424582,0.00019593,2]
[367204148,1750699838684,-500.0,0.00019593,2]
[367204149,1750699838694,-500.0,0.00019593,2]
[367204150,1750699838703,-211.62935071,0.00019593,2]
[367204151,1750699838712,-500.0,0.00019593,2]
[367204152,1750699838722,-500.0,0.00019593,2]
[367204153,1750699838731,-500.0,0.00019593,2]
[367204154,1750699838743,-545.82535115,0.00019593,2]
[367204155,1750699838752,-500.0,0.00019593,2]
[367204156,1750699838761,-500.0,0.00019593,2]
[367204157,1750699838770,-500.0,0.00019593,2]
[367204158,1750699838780,-500.0,0.00019593,2]
[367204159,1750699838789,-500.0,0.00019593,2]
[367204160,1750699838798,-623.42049447,0.00019593,2]
[367204161,1750699838807,-500.0,0.00019593,2]
[367204162,1750699838817,-293.62074325,0.00019593,2]
[367204163,1750699838826,-500.0,0.00019593,2]
[367204164,1750699838836,-500.0,0.00019593,2]
[367204165,1750699838846,-500.0,0.00019593,2]
[367204166,1750699838855,-406.19301482,0.00019593,2]
[367204167,1750699838865,-500.0,0.00019593,2]
[367204168,1750699838875,-500.0,0.00019593,2]
[367204169,1750699838884,-500.0,0.00019593,2]
[367204170,1750699838893,-500.0,0.00019593,2]
[367204171,1750699838903,-327.76739141,0.00019593,2]
[367204172,1750699838914,-207.98318391,0.00019593,2]
[367204173,1750699838924,-666.98641806,0.00019593,2]
[367204174,1750699838933,-460.0,0.00019594,2]
[367204175,1750699838943,-460.0,0.00019594,2]
[367204176,1750699838953,-460.0,0.00019594,2]
[367204177,1750699838962,-460.0,0.00019594,2]
[367204178,1750699838972,-460.0,0.00019594,2]
[367204179,1750699838981,-485.53246115,0.00019594,2]
[367204180,1750699838994,-421.44755692,0.00019594,2]
[367204181,1750699839019,-182.88244308,0.00019594,2]
[367204182,1750699839029,-440.0,0.00019594,2]
[367204183,1750699839038,-460.0,0.00019594,2]
[367204184,1750699839048,-1012.85984742,0.00019594,2]
[367204185,1750699839057,-460.0,0.00019594,2]
[367204186,1750699839067,-447.36010337,0.00019594,2]
[367204187,1750699839077,-460.0,0.00019594,2]
[367204188,1750699839087,-460.0,0.00019594,2]
[367204189,1750699839096,-472.85,0.00019594,2]
[367204190,1750699839106,-592.73,0.00019594,2]
[367204191,1750699839115,-4524.64,0.00019594,2]
[367204192,1750699839125,-461.31065203,0.00019594,2]
[367204193,1750699839134,-466.48,0.00019594,2]
[367204194,1750699839144,-460.0,0.00019594,2]
[367204195,1750699839153,-460.0,0.00019594,2]
[367204196,1750699839163,-3735.7,0.00019594,2]
[367204197,1750699839172,-460.0,0.00019594,2]
[367204198,1750699839182,-1443.02,0.00019594,2]
[367204199,1750699839191,-553.05,0.00019594,2]
[367204200,1750699839201,-984.22,0.00019594,2]
[367204201,1750699839211,-460.0,0.00019594,2]
[367204202,1750699839442,-460.0,0.00019594,2]
[367204203,1750699839453,-2738.15,0.00019594,2]
[367204204,1750699839462,-4493.05,0.00019594,2]
[367204205,1750699839472,-460.0,0.00019594,2]
[367204206,1750699839482,-460.0,0.00019594,2]
[367204207,1750699839492,-460.0,0.00019594,2]
[367204208,1750699839501,-1948.0,0.00019594,2]
[367204209,1750699839511,-479.58,0.00019594,2]
[367204210,1750699839520,-968.97,0.00019594,2]
[367204211,1750699839530,-1518.06,0.00019594,2]
[367204212,1750699839539,-4742.45,0.00019594,2]
[367204213,1750699839549,-1560.89,0.00019594,2]
[367204214,1750699839559,-460.0,0.00019594,2]
[367204215,1750699839569,-1025.4,0.00019594,2]
[367204216,1750699839579,-536.87,0.00019594,2]
[367204217,1750699839591,-460.0,0.00019594,2]
[367204218,1750699839600,-460.0,0.00019594,2]
[367204219,1750699839610,-460.0,0.00019594,2]
[367204220,1750699839619,-987.27,0.00019595,2]
[367204221,1750699839628,-460.0,0.00019595,2]
[367204222,1750699839637,-460.0,0.00019595,2]
[367204223,1750699839647,-460.0,0.00019595,2]
[367204224,1750699839656,-581.05847454,0.00019595,2]
[367204225,1750699839666,-460.0,0.00019595,2]
[367204226,1750699839676,-460.0,0.00019595,2]
[367204227,1750699839685,-460.0,0.00019595,2]
[367204228,1750699839695,-508.25653715,0.00019595,2]
[367204229,1750699839705,-545.79,0.00019595,2]
[367204231,1750699839714,-1655.38,0.00019595,2]
[367204232,1750699839723,-1769.67,0.00019595,2]
[367204233,1750699839733,-460.0,0.00019595,2]
[367204234,1750699839752,-500.0,0.00019595,2]
[367204235,1750699839764,-771.32,0.00019595,2]
[367204236,1750699839774,-460.0,0.00019595,2]
[367204237,1750699839784,-460.0,0.00019595,2]
[367204239,1750699839795,-422.61235914,0.00019595,2]
[367204241,1750699839805,-726.72,0.00019595,2]
[367204242,1750699839815,-1117.21,0.00019595,2]
[367204243,1750699839825,-2099.78,0.00019595,2]
[367204244,1750699839835,-1307.57,0.00019595,2]
[367204245,1750699839845,-460.0,0.00019595,2]
[367204246,1750699839855,-2009.77,0.00019595,2]
[367204247,1750699839866,-570.38,0.00019595,2]
[367204248,1750699839876,-337.96584668,0.00019596,2]
[367204249,1750699839886,-460.0,0.00019596,2]
[367204250,1750699839896,-460.0,0.00019596,2]
[367204251,1750699839907,-460.0,0.00019596,2]
[367204253,1750699839917,-1020.62,0.00019596,2]
[367204254,1750699839927,-460.0,0.00019596,2]